Cogmind - Beta 17 @@@ ROGUE MODE // 2026.08.15 @ 00:05:04 Player: alice_fexa Result: Destroyed by as-59781 with Assembled Blade Performance ------------- Evolutions (0) 0 Regions Visited (4) 800 Robots Destroyed (33) 165 Value Destroyed (610) 610 Prototype IDs (2) 40 Alien Tech Used (0) 0 Bonus (0) 0 TOTAL SCORE: 1615 Bonus ------- None Cogmind --------- Core Integrity 0/250 Matter 272/300 Energy 90/100 System Corruption 0% Temperature Cool (9) Movement Treading (320) Ox2 Location -9/Mines Parts ------- > --- POWER (1) -------- (None) > --- PROPULSION (2) --- Light Treads Wheel > --- UTILITY (2) ------ Improved Heat Sink High-capacity Storage Unit > --- WEAPON (2) ------- Beam Cannon Improved Light Cannon > --- INVENTORY (20) --- Ion Engine Light Ion Engine Light Treads Light Treads Wheel Heat Sink Medium Matter Pod (100) Tractor Beam Medium Laser Medium Laser Medium Laser Light Assault Rifle Light Assault Rifle Light Assault Rifle Light Assault Rifle Improved Light Cannon Improved Light Cannon Improved Light Cannon Peak State ------------ > --- POWER ------------ Light Ion Engine > --- PROPULSION ------- Light Treads Wheel > --- UTILITY ---------- Improved Heat Sink High-capacity Storage Unit > --- WEAPON ----------- Medium Laser Particle Gun > --- INVENTORY -------- Light Ion Engine Light Ion Engine Light Ion Engine Light Ion Engine Light Ion Engine Light Treads Light Treads Wheel Wheel Wheel Compact Wheel Medium Laser Medium Laser Medium Laser Assault Rifle Light Assault Rifle Light Assault Rifle Light Assault Rifle Light Assault Rifle Light Assault Rifle [Rating: 12] Favorites ----------- Power Light Ion Engine Engine Light Ion Engine Propulsion Light Treads Treads Light Treads Wheel Wheel Utility Improved Heat Sink Device Improved Heat Sink Storage High-capacity Storage Unit Processor Targeting Computer Weapon Particle Gun Energy Gun Particle Gun Energy Cannon Beam Cannon Ballistic Gun Assault Rifle Ballistic Cannon Battle Cannon Build | -11 -10 -10 -10 -9 ------- Run | Yrd Mat Min Exi Min Slots Evolved . | . . . . . Power . | . . . . . Propulsion . | . . . . . Utility . | . . . . . Weapon . | . . . . . Parts Attached 24 | 6 15 1 . 2 Power 7 | 1 6 . . . Engine 7 | 1 6 . . . Core . | . . . . . Reactor . | . . . . . Propulsion 6 | 2 3 . . 1 Treads 2 | 2 . . . . Leg . | . . . . . Wheel 4 | . 3 . . 1 Hover . | . . . . . Flight . | . . . . . Utility 5 | 1 4 . . . Device 2 | . 2 . . . Storage 2 | 1 1 . . . Processor 1 | . 1 . . . Hackware . | . . . . . Protection . | . . . . . Artifact . | . . . . . Weapon 6 | 2 2 1 . 1 Energy Gun 2 | 1 1 . . . Energy Cannon 1 | . 1 . . . Ballistic Gun 1 | 1 . . . . Ballistic Cannon 2 | . . 1 . 1 Launcher . | . . . . . Special Weapon . | . . . . . Impact Weapon . | . . . . . Slashing Weapon . | . . . . . Piercing Weapon . | . . . . . Special Melee Weapon . | . . . . . Unidentified Prototypes . | . . . . . Parts Lost 5 | . 2 . . 3 Power 3 | . 2 . . 1 Propulsion 1 | . . . . 1 Utility . | . . . . . Weapon 1 | . . . . 1 Highest Loss Streak 3 | . 1 . . 3 To Critical Strikes . | . . . . . Average Backups 15 | 2 14 20 20 19 Power 2 | . 2 2 2 2 Propulsion 3 | 1 3 4 4 3 Utility 1 | . 1 3 3 3 Weapon 8 | . 7 11 11 11 Tool/Special . | . . . . . Unused Backups 27 | . 10 . . 17 Power 3 | . 1 . . 2 Propulsion 4 | . 2 . . 2 Utility 5 | . 2 . . 3 Weapon 15 | . 5 . . 10 Tool/Special . | . . . . . Average Slot Usage (%) 99 | . 98 100 100 100 Engine 13 | . 13 14 14 14 Treads 17 | . 18 14 14 14 Wheel 10 | . 9 14 14 14 Device 12 | . 11 14 14 14 Storage 14 | . 14 14 14 14 Processor 1 | . 1 . . . Energy Gun 14 | . 18 11 . . Energy Cannon 8 | . 6 14 14 14 Ballistic Gun 2 | . 3 . . . Ballistic Cannon 2 | . . 2 14 14 Peak Build Rating 12 | 6 12 12 12 12 Average Rating 10 | 4 10 12 12 11 On Entrance 8 | . 6 12 12 12 Avg Prop Armor Cover (%) 11 | . 12 11 11 11 Naked Turns . | . . . . . Heaviest Build 52 | 12 52 52 52 52 Greatest Support 40 | 40 40 10 10 10 Greatest Overweight (x) 5 | . 5 5 5 5 Average Overweight (x) 3 | . 2 5 5 5 Largest Inventory Capacity 20 | 8 20 20 20 20 Average Capacity 16 | 7 16 20 20 20 Most Carried 20 | 5 20 20 20 20 Average Carried 15 | 2 14 20 20 19 Final Capacity 20 | 8 20 20 20 20 Final Carried 20 | 5 20 20 20 18 Class Distribution -------------------- 59% | Mutant 40% | Scavenger-Mutant Dominant Class ---------------- Mutant | -10/Materials Scavenger-Mutant | -10/Mines Mutant | -10/Exiles Mutant | -9/Mines Resources | -11 -10 -10 -10 -9 ----------- Run | Yrd Mat Min Exi Min Matter Collected 609 | 266 323 10 . 10 Remotely . | . . . . . Salvage Created 1049 | 91 854 74 . 30 Parts 61 | 2 55 4 . . Haulers Intercepted 2 | . 2 . . . Recyclers Shooed . | . . . . . Parts Field Recycled . | . . . . . Retrieved Matter . | . . . . . Parts Self-Destructed . | . . . . . Prevented . | . . . . . Parts Restored . | . . . . . Kills | -11 -10 -10 -10 -9 ------- Run | Yrd Mat Min Exi Min Combat Hostiles Destroyed 28 | . 19 2 . 7 Guns 15 | . 15 . . . Cannons 7 | . 4 1 . 2 AOE 5 | . . . . 5 Classes Destroyed 10 | 1 8 . . 1 Worker 3 | . 3 . . . Builder 1 | . 1 . . . Tunneler 1 | . 1 . . . Hauler 2 | . 2 . . . Recycler 2 | 1 1 . . . Mechanic 1 | . 1 . . . Watcher 2 | . 2 . . . Swarmer 9 | . 9 . . . Grunt 12 | . 10 2 . . Assembled 7 | . . . . 7 Best Kill Streak 7 | 1 4 2 . 7 Combat Bots Only 7 | . 3 2 . 7 Max Kills in Single Turn 5 | 1 1 1 . 5 Gunslinging . | . . . . . Exploded 5 | . . . . 5 Melee . | . . . . . Uniques/NPCs Destroyed . | . . . . . Combat | -11 -10 -10 -10 -9 -------- Run | Yrd Mat Min Exi Min Hostile Shots Fired 121 | . 66 5 . 50 Missed 40 | . 23 3 . 14 Hits 81 | . 43 2 . 36 Melee 4 | . . . . 4 Projectile 77 | . 43 2 . 32 Damage Taken 1131 | . 477 33 . 621 Core 252 | . 69 17 . 166 Absorbed by Shields . | . . . . . Regen/Repaired (Parts) 92 | . 92 . . . Core Remaining (%) 100 | 100 . . . . Volleys Fired 102 | 2 91 4 . 5 Largest 2 | 2 2 2 . 2 Hottest 125 | 70 125 125 . 93 Shots Fired 199 | 4 178 8 . 9 Gun 170 | 4 162 4 . . Cannon 29 | . 16 4 . 9 Launcher . | . . . . . Special . | . . . . . Kinetic 32 | 2 26 . . 4 Thermal 167 | 2 152 8 . 5 Explosive . | . . . . . Electromagnetic . | . . . . . Robot Hit Streak 21 | 4 21 5 . 5 Robot Miss Streak 5 | . 5 1 . 1 Penetration Max . | . . . . . Secondary Targets . | . . . . . Shots Hit Robots 118 | 4 101 7 . 6 Core Hits 54 | 2 41 1 . 10 Critical Kills . | . . . . . Critical Parts Destroyed . | . . . . . Critical Strikes 13 | . 12 1 . . Burn 13 | . 12 1 . . Melee Attacks . | . . . . . Impact . | . . . . . Slashing . | . . . . . Piercing . | . . . . . Sneak Attacks . | . . . . . Combat Hostiles . | . . . . . Follow-up Attacks . | . . . . . Damage Inflicted 2119 | 48 1413 115 . 543 Guns 1368 | 48 1274 46 . . Cannons 342 | . 139 69 . 134 Explosions 409 | . . . . 409 Melee . | . . . . . Ramming . | . . . . . Kinetic 292 | 22 205 . . 65 Thermal 1827 | 26 1208 115 . 478 Explosive . | . . . . . Electromagnetic . | . . . . . Impact . | . . . . . Slashing . | . . . . . Piercing . | . . . . . Highest Corruption . | . . . . . Average Corruption . | . . . . . Corruption Purged . | . . . . . Corruption Blocked . | . . . . . Overload Shots . | . . . . . Overflow Damage 21 | . . . . 21 Projectiles . | . . . . . Explosions 21 | . . . . 21 Melee . | . . . . . Knockbacks . | . . . . . Impact . | . . . . . Kinetic . | . . . . . Secondary . | . . . . . Self-Inflicted Damage 57 | . . . . 57 Shots 1 | . . . . 1 Rammed . | . . . . . Targets Rammed . | . . . . . Kicked . | . . . . . Crushed . | . . . . . Highest Temperature 142 | 18 142 102 . 26 Average Temperature 30 | 10 30 52 . 17 Received Heat Transfer 296 | . 198 18 . 80 Siege Activations . | . . . . . Martial Activations . | . . . . . Shielding Activations . | . . . . . Robots Disrupted . | . . . . . Combat Hostiles . | . . . . . Robots Corrupted . | . . . . . Combat Hostiles . | . . . . . Parts Fried . | . . . . . Impact Corruptions . | . . . . . Robots Melted 1 | . . 1 . . Combat Hostiles 1 | . . 1 . . Parts Melted 11 | . 9 2 . . Heat Transferred 5088 | 74 4033 333 . 648 Parts Sabotaged . | . . . . . Parts Stolen . | . . . . . Parts Stripped . | . . . . . Power Chain Reactions . | . . . . . Alert | -11 -10 -10 -10 -9 ------- Run | Yrd Mat Min Exi Min Maximum Alert Level . | . . . . . Low Security (%) 100 | 100 100 100 . 100 Level 1 . | . . . . . Level 2 . | . . . . . Level 3 . | . . . . . Level 4 . | . . . . . Level 5 . | . . . . . High Security . | . . . . . Max Security . | . . . . . Peak Influence 148 | 5 148 75 . 24 Initial 25 | . . 25 . . Average 60 | . 66 42 . 3 Influence Increases 652 | 5 573 50 . 24 Destroy 0b10 Robot/C 420 | . 380 40 . . Destroy 0b10 Robot/NC 60 | 5 55 . . . Destroy Leader 78 | . 68 10 . . Successful Hack 5 | . 5 . . . Disable Machine 15 | . . . . 15 Destroy Structure 14 | . 5 . . 9 Lose Combat Pursuer 60 | . 60 . . . Influence Decreases 648 | 5 508 110 5 20 Entered New Map 45 | . . 40 5 . Time Decay 563 | 5 488 70 . . Lost Part 40 | . 20 . . 20 Squads Dispatched 3 | . 3 . . . Investigation 2 | . 2 . . . Extermination . | . . . . . Reinforcement 1 | . 1 . . . Assault . | . . . . . Garrison . | . . . . . Intercept . | . . . . . Searches Triggered . | . . . . . Construction Impeded . | . . . . . Haulers Reinforced . | . . . . . Active Scanning Responses . | . . . . . Cargo Convoy Interrupts . | . . . . . Stealth | -11 -10 -10 -10 -9 --------- Run | Yrd Mat Min Exi Min Distress Signals 1 | . 1 . . . Communications Jammed . | . . . . . Distress Signals . | . . . . . Times Spotted 53 | . 33 1 . 19 Peak Tracking Total 20 | . 4 1 . 20 Tactical Retreats 5 | . 4 . . 1 Traps | -11 -10 -10 -10 -9 ------- Run | Yrd Mat Min Exi Min Traps Triggered 3 | . 3 . . . Indirectly . | . . . . . Trap Hack Attempts . | . . . . . Triggered . | . . . . . Disarmed . | . . . . . Reprogrammed . | . . . . . Reused . | . . . . . Traps Extracted . | . . . . . Installed . | . . . . . Triggered . | . . . . . Machines | -11 -10 -10 -10 -9 ---------- Run | Yrd Mat Min Exi Min Machines Disabled 1 | . . . . 1 Max in Single Turn 1 | . . . . 1 Machines Repaired . | . . . . . Machines Dismantled . | . . . . . Machines Sabotaged . | . . . . . Overloaded Fab Kills . | . . . . . Hacking | -11 -10 -10 -10 -9 --------- Run | Yrd Mat Min Exi Min Machines Accessed 8 | . 7 . 1 . Terminals 6 | . 6 . . . Fabricators . | . . . . . Repair Stations 1 | . 1 . . . Recycling Units . | . . . . . Scanalyzers . | . . . . . Garrison Access . | . . . . . Total Hacks 17 | . 16 . 1 . Successful 10 | . 9 . 1 . Failed 7 | . 7 . . . Catastrophic . | . . . . . Database Lockouts . | . . . . . Manual 13 | . 13 . . . Terminals 14 | . 14 . . . Fabricators . | . . . . . Repair Stations 2 | . 2 . . . Recycling Units . | . . . . . Scanalyzers . | . . . . . Garrison Access . | . . . . . Terminal Hacks 2 | . 1 . 1 . Record 1 | . . . 1 . Prototype ID Bank 1 | . 1 . . . Fabricator Hacks . | . . . . . Repair Station Hacks 2 | . 2 . . . Scan Component 1 | . 1 . . . Repair 1 | . 1 . . . Recycling Unit Hacks . | . . . . . Scanalyzer . | . . . . . Garrison Access Hacks . | . . . . . Unauthorized Hacks 6 | . 6 . . . Terminals 6 | . 6 . . . Botnet 1 | . 1 . . . Skim 5 | . 5 . . . Fabricators . | . . . . . Repair Stations . | . . . . . Recycling Units . | . . . . . Scanalyzers . | . . . . . Garrison Access . | . . . . . Data Cores Recovered . | . . . . . Used . | . . . . . Hacking Detections 6 | . 6 . . . Full Trace Events . | . . . . . Feedback Events . | . . . . . Feedback Blocked . | . . . . . Robot Schematics Acquired . | . . . . . Robots Built . | . . . . . Authchips . | . . . . . Time . | . . . . . Total Robot Build Rating . | . . . . . Part Schematics Acquired . | . . . . . Parts Built . | . . . . . Authchips . | . . . . . Time . | . . . . . Total Part Build Rating . | . . . . . Part Studies Acquired . | . . . . . Parts Repaired 1 | . 1 . . . Time 26 | . 26 . . . Parts Recycled . | . . . . . Recycled Matter . | . . . . . Retrieved Matter . | . . . . . Retrieved Components . | . . . . . Parts Scanalyzed . | . . . . . Part Schematics Acquired . | . . . . . Parts Damaged . | . . . . . Bothacking | -11 -10 -10 -10 -9 ------------ Run | Yrd Mat Min Exi Min Used RIF Installer . | . . . . . Robots Hacked . | . . . . . Non-combat . | . . . . . Combat . | . . . . . Robot Hacks Applied . | . . . . . Relay Couplers Released . | . . . . . Fabnet Peak Effective % . | . . . . . Robots Rewired . | . . . . . Allies Hacked . | . . . . . Hacks Repelled . | . . . . . Allies | -11 -10 -10 -10 -9 -------- Run | Yrd Mat Min Exi Min Total Allies . | . . . . . Largest Group . | . . . . . Highest-Rated Group . | . . . . . Highest-Rated Ally . | . . . . . Total Orders . | . . . . . Ally Attacks . | . . . . . Total Damage . | . . . . . Kills . | . . . . . Allies Corrupted . | . . . . . Allies Melted . | . . . . . Intel | -11 -10 -10 -10 -9 ------- Run | Yrd Mat Min Exi Min Active Infowar (turns) 134 | . 134 . . . Structural 134 | . 134 . . . Robot Analysis Total . | . . . . . Derelict Logs Recovered . | . . . . . Drone Launches . | . . . . . Drone Recoveries . | . . . . . Exploration | -11 -10 -10 -10 -9 ------------- Run | Yrd Mat Min Exi Min Turns Passed 2316 | 73 1704 142 338 59 Spaces Moved 1081 | 36 718 82 219 26 Core 4 | 4 . . . . Treads 252 | 32 220 . . . Legs . | . . . . . Wheels 825 | . 498 82 219 26 Hover . | . . . . . Flight . | . . . . . Fastest Speed 50 | 50 140 155 155 155 Average Speed 150 | 147 149 155 155 155 Slowest Speed 160 | 160 160 155 155 155 Overloaded Moves . | . . . . . Propulsion Burnouts . | . . . . . Robots Hopped . | . . . . . Potential Cave-ins . | . . . . . Cave-ins Triggered . | . . . . . Exploration Rate (%) 36 | 4 88 23 59 9 Regions Visited 4 Branch Regions 3 Pre-discovered Areas 1 | . 1 . . . Known Exits Taken 1 | . . . 1 . Unknown Exits Taken 3 | 1 1 1 . . Scrap Searched 2 | . . 1 . 1 Spaces Dug . | . . . . . Terrain Destroyed 9 | . . . . 9 Melee . | . . . . . Projectile . | . . . . . AOE 9 | . . . . 9 Terrain Rammed . | . . . . . Walls Destroyed . | . . . . . Machines Disabled . | . . . . . Actions | -11 -10 -10 -10 -9 --------- Run | Yrd Mat Min Exi Min Total 1586 | 49 1193 89 218 37 Wait 316 | 1 309 2 . 4 Move 1077 | 35 717 81 218 26 Hop . | . . . . . Pick Up 37 | 5 32 . . . Fast Attach 13 | 6 6 1 . . Attach 4 | . 2 . . 2 Detach 3 | . 3 . . . Swap 8 | . 8 . . . Drop 26 | . 25 1 . . Fire 102 | 2 91 4 . 5 Melee . | . . . . . Ram . | . . . . . Kick . | . . . . . Crush . | . . . . . Escape Stasis . | . . . . . Rewire . | . . . . . Trap . | . . . . . Miscellaneous . | . . . . . Route ------- -11/Scrapyard -10/Materials (discovered 6 exits: *Mat x3 / [*Min x2] / Sub) -10/Mines (discovered 3 exits: Mat x2 / *Exi) -10/Exiles (discovered 2 exits: *Min x2) -9/Mines History --------- Turn | Location | Event 29 | -11/Scrapyard | Discovered new exit (range 16) 74 | -11/Scrapyard | Entered Materials 281 | -10/Materials | Discovered new exit (range 7) 304 | -10/Materials | Build established: Mutant 693 | -10/Materials | Discovered new exit (range 16) 1014 | -10/Materials | Discovered new exit (range 13) 1206 | -10/Materials | Discovered new exit (range 16) 1417 | -10/Materials | Learned location of Storage (-7) 1487 | -10/Materials | Identified exit to Subcaves 1487 | -10/Materials | Identified exit to Materials 1519 | -10/Materials | Repaired Lgt. Treads 1559 | -10/Materials | Build established: Scavenger-Mutant 1778 | -10/Materials | Entered Mines 1808 | -10/Mines | Met a Derelict bent on vengeance 1894 | -10/Mines | A weapon hastily lodged in a ceiling crevice suddenly fell to the ground 1914 | -10/Mines | Deemed a non-threat by the Exiles lab entrance 1914 | -10/Mines | Discovered new exit (range 5) 1920 | -10/Mines | Entered Exiles 1920 | -10/Exiles | Found Exiles lab abandoned 1921 | -10/Exiles | Identified exit to Mines 2185 | -10/Exiles | Build established: Mutant 2258 | -10/Exiles | Entered Mines 2259 | -9/Mines | Assembled infested the area 2306 | -9/Mines | Core integrity fell below 50% 2314 | -9/Mines | Core integrity fell below 20% 2317 | -9/Mines | Destroyed by as-59781 with Assembled Blade Last Messages --------------- 02265_ Found Med. Laser. 02265_ Found 59 Matter. 02265_ Found 64 Matter. 02266_ Acquired 10 matter. 02291_ Knocked back. 02293_ T-07 Excavator destroyed. 02294_ Wheel destroyed. 02304_ Plasma Injector explodes. 02304_ Destroyed Asb. Hover Unit. 02304_ as-42657 destroyed. 02304_ as-04006 destroyed. 02304_ Destroyed Asb. Hover Unit. 02304_ as-18218 destroyed. 02304_ as-86482 destroyed. 02304_ as-31954 destroyed. 02304_ Destroyed Asb. Hover Unit. 02310_ Battle Cannon destroyed. 02310_ as-38057 destroyed. 02313_ as-50442 destroyed. 02316_ Ion Engine destroyed. Map ----- +----------------------------------------------------+ | ?????????????????????????????????????????????????? | | ?????????????????????????????????????????????????? | | ?????????????????????????????????????????????????? | | ?????????????????????????????????????????????????? | | ?????????????????????????????????????????????????? | | ?????????????????????????????????????????????????? | | ?????????????????????????????????????????????????? | | ???????????????????############## #??????????????? | | ???????????????????# #????????????? | | ???????????????????# " #???????????? | | ???????????????????#%[#########??????????????????? | | ???????????????????# %#??????????????????????????? | | ???????????????????#![#??????????????????????????? | | ???????????????????# ##?????????????????????????? | | ???????????????????# ##????????????????????????? | | ???????????????????# #????????????????????????? | | ???????????????????# #????????????????????????? | | ???????????????????# #????????????????????????? | | ???????????????????## ##???????????????????????? | | ????????????????????## a#???????????????????????? | | ????????????????????## ###?????????????????????? | | ??????????????????### % ;;##????????????????????? | | ?????????????????## %a ;;#????????????????????? | | ?????????????????# %;##???????????????????? | | ?????????????????# a *;#???????????????????? | | ?????????????????# @=!%### #?????????? | | ?????????????????## a % = ! #?????????? | | ??????????????????## a ;; #??????????? | | ???????????????????## %######### ##??????????? | | ????????????????????#####????????????#???????????? | | ?????????????????????????????????????????????????? | | ?????????????????????????????????????????????????? | | | | | | | | | | | | | | | | | | | | | | | | | | | | | | | | | | | | | +----------------------------------------------------+ Best States ------------- Heat Dissipation 39 Energy Generation 10 Energy Capacity 250 Matter Stores 300 Matter Capacity 300 Sight Range 16 Terrain Scan Density 10 Evasion (%) 40 Targeting Accuracy 5 Recoil Reduction 2 Item Schematics ----------------- None Robot Schematics ------------------ None Fabricated ------------ Nothing Repaired ---------- Lgt. Treads | 34% | -10/Materials Studied --------- None Alien Tech Used ----------------- None Achievements -------------- None Challenges ------------ None Game ------ Seed AssaultNeutronTransmogrifier Manual? 0 Play Time 00:08:57 Cumulative 1722.7 hours Start 2026.08.14 @ 23:56:57 End 2026.08.15 @ 00:05:04 Sessions 1 Manual Loads 0 Difficulty Rogue Special Mode None Game No. 1238 Rogue 1198 Adventurer 40 Explorer 0 Win Type - Total 227 Types 107/12/76/3/2/4/16/2/1/4 Lore% 98 Gallery% 98 Achievement% 92 Wizard Run 0 Options --------- Layout 0 ASCII 0 Keyboard 0 Movement Numpad Keybinds 0 Fullscreen 0 Font 20/Terminus Map View 76x50 Zoom Use 0% Tactical HUD 1 Map Filters NONE Filters NONE Steam 1 RUN: 3492bfeb-090b-40fc-8202-7f624abc22c3